fUSD/lending_fUSD_20240109
["ID","MTS","AMOUNT","RATE_DAILY","PERIOD"]
[310978164,1704838305234,-1095.94,0.00041424,30]
[310978165,1704838305244,-500.0,0.00041424,30]
[310978166,1704838305254,-1092.75,0.00041424,30]
[310978167,1704838305264,-500.0,0.00041424,30]
[310978168,1704838305274,-500.0,0.00041424,30]
[310978169,1704838305283,-500.0,0.00041424,30]
[310978170,1704838305293,-500.0,0.00041424,30]
[310978171,1704838305303,-697.87,0.00041424,30]
[310978172,1704838305313,-223.21095427,0.00041424,30]
[310978173,1704838305324,-732.79,0.00041424,30]
[310978174,1704838305341,-410.14960009,0.00041424,30]
[310978175,1704838305350,-500.0,0.00041424,30]
[310978176,1704838305360,-500.0,0.00041424,30]
[310978177,1704838305371,-500.0,0.00041424,30]
[310978178,1704838305381,-1093.88,0.00041424,30]
[310978179,1704838305390,-500.0,0.00041424,30]
[310978180,1704838305400,-553.69,0.00041424,30]
[310978181,1704838305410,-911.96,0.00041424,30]
[310978182,1704838305420,-500.0,0.00041424,30]
[310978183,1704838305430,-500.0,0.00041424,30]
[310978184,1704838305439,-629.6,0.00041424,30]
[310978185,1704838305449,-1000.0,0.00041424,30]
[310978186,1704838305459,-500.0,0.00041424,30]
[310978187,1704838305469,-954.8,0.00041424,30]
[310978188,1704838305479,-500.0,0.00041424,30]
[310978189,1704838305489,-731.3,0.00041424,30]
[310978190,1704838305499,-500.0,0.00041424,30]
[310978191,1704838305509,-527.77079099,0.00041424,30]
[310978192,1704838305519,-500.0,0.00041424,30]
[310978193,1704838305528,-500.0,0.00041424,30]
[310978194,1704838305538,-500.0,0.00041424,30]
[310978195,1704838305547,-965.23,0.00041424,30]
[310978196,1704838305557,-715.75,0.00041424,30]
[310978197,1704838305566,-500.0,0.00041424,30]
[310978198,1704838305577,-500.0,0.00041424,30]
[310978199,1704838305589,-500.0,0.00041424,30]
[310978200,1704838305599,-500.0,0.00041424,30]
[310978201,1704838305608,-868.98,0.00041424,30]
[310978202,1704838305618,-500.0,0.00041424,30]
[310978203,1704838305628,-605.08,0.00041424,30]
[310978204,1704838305638,-793.55,0.00041424,30]
[310978205,1704838305647,-500.0,0.00041424,30]
[310978206,1704838305657,-940.16,0.00041424,30]
[310978207,1704838305666,-586.7,0.00041424,30]
[310978208,1704838305676,-629.82,0.00041424,30]
[310978209,1704838305685,-500.0,0.00041424,30]
[310978210,1704838305695,-826.1,0.00041424,30]
[310978211,1704838305705,-672.75,0.00041424,30]
[310978212,1704838305715,-500.0,0.00041424,30]
[310978213,1704838305724,-500.0,0.00041424,30]
[310978214,1704838305734,-460.42481043,0.00041424,30]
[310978215,1704838305744,-500.0,0.00041424,30]
[310978216,1704838305754,-500.0,0.00041424,30]
[310978217,1704838305764,-1579.44,0.00041424,30]
[310978218,1704838305773,-913.61,0.00041424,30]
[310978219,1704838305783,-500.0,0.00041424,30]
[310978220,1704838305793,-407.93296124,0.00041424,30]
[310978221,1704838305803,-740.8,0.00041424,30]
[310978222,1704838305812,-1195.0,0.00041424,30]
[310978223,1704838305822,-215.57549579,0.00041424,30]
[310978224,1704838305836,-500.0,0.00041424,30]
[310978225,1704838305846,-500.0,0.00041424,30]
[310978226,1704838305856,-537.75,0.00041424,30]
[310978227,1704838305866,-338.2168369,0.00041424,30]
[310978228,1704838305876,-500.0,0.00041424,30]
[310978229,1704838305887,-758.11,0.00041424,30]
[310978230,1704838305897,-500.0,0.00041424,30]
[310978231,1704838305908,-1327.58,0.00041424,30]
[310978232,1704838305918,-500.0,0.00041424,30]
[310978233,1704838305928,-500.0,0.00041424,30]
[310978234,1704838305939,-500.0,0.00041424,30]
[310978235,1704838305948,-500.0,0.00041424,30]
[310978236,1704838305958,-500.0,0.00041424,30]
[310978237,1704838305968,-526.19,0.00041424,30]
[310978238,1704838305978,-500.0,0.00041424,30]
[310978239,1704838305988,-500.0,0.00041424,30]
[310978240,1704838305997,-500.0,0.00041424,30]
[310978241,1704838306007,-1553.12,0.00041424,30]
[310978242,1704838306016,-627.74,0.00041424,30]
[310978243,1704838306026,-500.0,0.00041424,30]
[310978244,1704838306036,-500.0,0.00041424,30]
[310978245,1704838306046,-813.03,0.00041424,30]
[310978246,1704838306056,-500.0,0.00041424,30]
[310978247,1704838306065,-500.0,0.00041424,30]
[310978248,1704838306075,-1218.54,0.00041424,30]
[310978249,1704838306089,-500.0,0.00041424,30]
[310978250,1704838306098,-500.0,0.00041424,30]
[310978251,1704838306108,-500.0,0.00041424,30]
[310978252,1704838306118,-930.98,0.00041424,30]
[310978253,1704838306132,-500.0,0.00041424,30]
[310978254,1704838306145,-500.0,0.00041424,30]
[310978255,1704838306154,-528.15,0.00041424,30]
[310978256,1704838306164,-778.06,0.00041424,30]
[310978257,1704838306173,-750.76,0.00041424,30]
[310978258,1704838306183,-500.0,0.00041424,30]
[310978259,1704838306193,-630.23,0.00041424,30]
[310978260,1704838306204,-1131.88,0.00041424,30]
[310978261,1704838306214,-1105.98,0.00041424,30]
[310978262,1704838306224,-500.0,0.00041424,30]
[310978263,1704838306234,-1116.21,0.00041424,30]
[310978264,1704838306245,-565.46,0.00041424,30]
[310978265,1704838306255,-500.0,0.00041424,30]
[310978266,1704838306266,-1638.68,0.00041424,30]
[310978267,1704838306275,-500.0,0.00041424,30]
[310978268,1704838306285,-798.11,0.00041424,30]
[310978269,1704838306294,-500.0,0.00041424,30]
[310978270,1704838306304,-500.0,0.00041424,30]
[310978271,1704838306313,-500.0,0.00041424,30]
[310978272,1704838306323,-631.35,0.00041424,30]
[310978273,1704838306337,-500.0,0.00041424,30]
[310978274,1704838306346,-1492.74,0.00041424,30]
[310978275,1704838306357,-802.75,0.00041424,30]
[310978276,1704838306367,-500.0,0.00041424,30]
[310978277,1704838306376,-582.34018008,0.00041424,30]
[310978278,1704838306386,-500.0,0.00041424,30]
[310978279,1704838306396,-1391.21,0.00041424,30]
[310978280,1704838306406,-789.67,0.00041424,30]
[310978281,1704838306416,-500.0,0.00041424,30]
[310978282,1704838306425,-800.32,0.00041424,30]
[310978283,1704838306435,-525.86,0.00041424,30]
[310978284,1704838306445,-603.33,0.00041424,30]
[310978285,1704838306456,-608.68,0.00041424,30]
[310978286,1704838306466,-1077.3,0.00041424,30]
[310978287,1704838306477,-669.59,0.00041424,30]
[310978288,1704838306487,-500.0,0.00041424,30]
[310978289,1704838306498,-500.0,0.00041424,30]
[310978290,1704838306508,-500.0,0.00041424,30]
[310978291,1704838306518,-936.91,0.00041424,30]
[310978292,1704838306528,-500.0,0.00041424,30]
[310978293,1704838306538,-500.0,0.00041424,30]
[310978294,1704838306549,-250.0,0.00041424,30]
[310978295,1704838306559,-1709.05,0.00041424,30]
[310978296,1704838306569,-500.0,0.00041424,30]
[310978297,1704838306582,-500.0,0.00041424,30]
[310978298,1704838306592,-589.90150662,0.00041424,30]
[310978299,1704838306602,-500.0,0.00041424,30]
[310978300,1704838306612,-509.62,0.00041424,30]
[310978301,1704838306622,-1041.32,0.00041424,30]
[310978302,1704838306631,-500.0,0.00041424,30]
[310978303,1704838306641,-500.0,0.00041424,30]
[310978304,1704838306651,-827.64,0.00041424,30]
[310978305,1704838306660,-500.0,0.00041424,30]
[310978306,1704838306670,-500.0,0.00041424,30]
[310978307,1704838306680,-1164.73,0.00041424,30]
[310978308,1704838306690,-840.51,0.00041424,30]
[310978309,1704838306700,-500.0,0.00041424,30]
[310978310,1704838306709,-500.0,0.00041424,30]
[310978311,1704838306720,-511.73,0.00041424,30]
[310978312,1704838306729,-500.0,0.00041424,30]
[310978313,1704838306740,-516.06,0.00041424,30]
[310978314,1704838306750,-500.0,0.00041424,30]
[310978315,1704838306761,-500.0,0.00041424,30]
[310978316,1704838306771,-500.0,0.00041424,30]
[310978317,1704838306781,-500.0,0.00041424,30]
[310978318,1704838306792,-500.0,0.00041424,30]
[310978319,1704838306802,-510.19,0.00041424,30]
[310978320,1704838306812,-500.0,0.00041424,30]
[310978321,1704838306822,-1092.61,0.00041424,30]
[310978322,1704838306835,-500.0,0.00041424,30]
[310978323,1704838306846,-500.0,0.00041424,30]
[310978324,1704838306856,-500.0,0.00041424,30]
[310978325,1704838306866,-500.0,0.00041424,30]
[310978326,1704838306876,-500.0,0.00041424,30]
[310978327,1704838306886,-500.0,0.00041424,30]
[310978328,1704838306895,-500.0,0.00041424,30]
[310978329,1704838306906,-500.0,0.00041424,30]
[310978330,1704838306916,-500.0,0.00041424,30]
[310978331,1704838306927,-500.0,0.00041424,30]
[310978332,1704838306937,-500.0,0.00041424,30]
[310978333,1704838306948,-1360.4,0.00041424,30]
[310978334,1704838306958,-500.0,0.00041424,30]
[310978335,1704838306969,-1761.96,0.00041424,30]
[310978336,1704838306979,-704.3,0.00041424,30]
[310978337,1704838306989,-500.0,0.00041424,30]
[310978338,1704838306999,-500.0,0.00041424,30]
[310978339,1704838307010,-500.0,0.00041424,30]
[310978340,1704838307020,-500.0,0.00041424,30]
[310978341,1704838307030,-861.7,0.00041424,30]
[310978342,1704838307040,-943.22,0.00041424,30]
[310978343,1704838307050,-699.02,0.00041424,30]
[310978344,1704838307060,-826.82,0.00041424,30]
[310978345,1704838307069,-500.0,0.00041424,30]
[310978346,1704838307081,-500.0,0.00041424,30]
[310978347,1704838307091,-594.11,0.00041424,30]
[310978348,1704838307101,-500.0,0.00041424,30]
[310978349,1704838307111,-1067.02,0.00041424,30]
[310978350,1704838307121,-500.0,0.00041424,30]
[310978351,1704838307131,-510.36,0.00041424,30]
[310978352,1704838307140,-500.0,0.00041424,2]
[310978353,1704838307150,-500.0,0.00041424,30]
[310978354,1704838307160,-2016.86,0.00041424,30]
[310978355,1704838307170,-500.0,0.00041424,30]
[310978356,1704838307180,-500.0,0.00041424,30]
[310978357,1704838307190,-500.0,0.00041424,30]
[310978358,1704838307199,-500.0,0.00041424,30]
[310978359,1704838307209,-1173.29,0.00041424,30]
[310978360,1704838307219,-591.37,0.00041424,30]
[310978361,1704838307229,-500.0,0.00041424,30]
[310978362,1704838307238,-862.87,0.00041424,30]
[310978363,1704838307248,-379.45489863,0.00041424,30]
[310978364,1704838307258,-1728.77,0.00041424,30]
[310978365,1704838307268,-500.0,0.00041424,30]
[310978366,1704838307278,-1603.78,0.00041424,30]
[310978367,1704838307287,-506.6,0.00041424,30]
[310978368,1704838307297,-500.0,0.00041424,30]
[310978369,1704838307307,-691.21,0.00041424,30]
[310978370,1704838307316,-500.0,0.00041424,30]
[310978371,1704838307326,-332.63556188,0.00041424,30]
[310978372,1704838307586,-616.24,0.00041424,30]
[310978373,1704838307633,-500.0,0.00041424,30]
[310978374,1704838307643,-500.0,0.00041424,30]
[310978375,1704838307653,-686.18,0.00041424,30]
[310978376,1704838307663,-663.05,0.00041424,30]
[310978377,1704838307672,-551.84945328,0.00041424,30]
[310978378,1704838307682,-283.18844961,0.00041424,30]
[310978379,1704838307691,-500.0,0.00041424,30]
[310978380,1704838307702,-796.05,0.00041424,30]
[310978381,1704838307712,-988.23,0.00041424,30]
[310978382,1704838307723,-926.22,0.00041424,30]
[310978383,1704838307735,-605.45,0.00041424,6]
[310978384,1704838307746,-1356.8,0.00041424,30]
[310978385,1704838307756,-500.0,0.00041424,30]
[310978386,1704838307767,-500.0,0.00041424,30]
[310978387,1704838307777,-514.19,0.00041424,30]
[310978388,1704838307787,-711.06,0.00041424,30]
[310978389,1704838307796,-539.57477095,0.00041424,30]
[310978390,1704838307805,-1957.66,0.00041424,30]
[310978391,1704838307815,-683.33,0.00041424,30]
[310978392,1704838307824,-500.0,0.00041424,30]
[310978393,1704838307837,-803.13,0.00041424,30]
[310978394,1704838307846,-1229.9,0.00041424,30]
[310978395,1704838307856,-500.0,0.00041424,30]
[310978396,1704838307865,-816.32,0.00041424,30]
[310978397,1704838307875,-555.56,0.00041424,30]
[310978398,1704838307884,-651.53,0.00041424,30]
[310978399,1704838307894,-627.3,0.00041424,30]
[310978400,1704838307904,-500.0,0.00041424,30]
[310978401,1704838307914,-688.6,0.00041424,30]
[310978402,1704838307924,-572.21,0.00041424,30]
[310978403,1704838307933,-500.0,0.00041424,30]
[310978404,1704838307943,-500.0,0.00041424,30]
[310978405,1704838307952,-500.0,0.00041424,30]
[310978406,1704838307961,-500.0,0.00041424,30]
[310978407,1704838307971,-1308.0,0.00041424,30]
[310978408,1704838307980,-500.0,0.00041424,30]
[310978409,1704838307990,-500.0,0.00041424,30]
[310978410,1704838307999,-500.0,0.00041424,30]
[310978411,1704838308009,-633.27,0.00041424,30]
[310978412,1704838308019,-500.0,0.00041424,30]
[310978413,1704838308029,-886.58,0.00041424,30]
[310978414,1704838308039,-1462.94,0.00041424,30]
[310978415,1704838308048,-500.0,0.00041424,30]
[310978416,1704838308059,-500.0,0.00041424,30]
[310978417,1704838308068,-500.0,0.00041424,30]
[310978418,1704838308080,-500.0,0.00041424,30]
[310978419,1704838308089,-727.24,0.00041424,30]
[310978420,1704838308099,-500.0,0.00041424,30]
[310978421,1704838308108,-500.0,0.00041424,30]
[310978422,1704838308117,-1000.0,0.00041424,7]
[310978423,1704838308126,-1914.86,0.00041424,30]
[310978424,1704838308136,-601.88,0.00041424,30]
[310978425,1704838308145,-500.0,0.00041424,30]
[310978426,1704838308154,-500.0,0.00041424,30]
[310978427,1704838308163,-580.89,0.00041424,30]
[310978428,1704838308173,-915.42,0.00041424,30]
[310978429,1704838308183,-545.07,0.00041424,30]
[310978430,1704838308192,-829.5,0.00041424,30]
[310978431,1704838308202,-508.88,0.00041424,30]
[310978432,1704838308211,-935.65,0.00041424,30]
[310978433,1704838308220,-588.03,0.00041424,30]
[310978434,1704838308230,-500.0,0.00041424,30]
[310978435,1704838308239,-610.47,0.00041424,30]
[310978436,1704838308251,-695.09,0.00041424,30]
[310978437,1704838308261,-844.75,0.00041424,30]
[310978438,1704838308270,-1122.31,0.00041424,30]
[310978439,1704838308280,-500.0,0.00041424,30]
[310978440,1704838308290,-500.0,0.00041424,30]
[310978441,1704838308300,-742.19,0.00041424,30]
[310978442,1704838308309,-502.71,0.00041424,30]
[310978443,1704838308318,-500.0,0.00041424,30]
[310978444,1704838308330,-500.0,0.00041424,30]
[310978445,1704838308339,-500.0,0.00041424,30]
[310978446,1704838308348,-830.81,0.00041424,30]
[310978447,1704838308358,-500.0,0.00041424,30]
[310978448,1704838308367,-654.63,0.00041424,30]
[310978449,1704838308376,-514.17,0.00041424,30]
[310978450,1704838308386,-919.89,0.00041424,30]
[310978451,1704838308396,-287.16,0.00041424,30]
[310978452,1704838308406,-500.0,0.00041424,30]
[310978453,1704838308416,-500.0,0.00041424,30]
[310978454,1704838308426,-559.55097827,0.00041424,30]
[310978455,1704838308436,-500.0,0.00041424,30]
[310978456,1704838308447,-1129.63,0.00041424,30]
[310978457,1704838308457,-500.0,0.00041424,30]
[310978458,1704838308467,-500.0,0.00041424,30]
[310978459,1704838308477,-500.0,0.00041424,30]
[310978460,1704838308488,-500.0,0.00041424,30]
[310978461,1704838308499,-500.0,0.00041424,30]
[310978462,1704838308509,-613.36,0.00041424,30]
[310978463,1704838308519,-500.0,0.00041424,30]
[310978464,1704838308531,-666.21,0.00041424,30]
[310978465,1704838308542,-638.54,0.00041424,30]
[310978466,1704838308553,-663.01,0.00041424,30]
[310978467,1704838308564,-853.39,0.00041424,30]
[310978468,1704838308575,-500.0,0.00041424,30]
[310978469,1704838308593,-516.61159529,0.00041424,2]
[310978470,1704838308604,-557.76,0.00041424,30]
[310978471,1704838308614,-715.94,0.00041424,30]
[310978472,1704838308624,-500.0,0.00041424,30]
[310978473,1704838308634,-500.0,0.00041424,30]
[310978474,1704838308644,-500.0,0.00041424,30]
[310978475,1704838308655,-500.0,0.00041424,30]
[310978476,1704838308666,-500.0,0.00041424,30]
[310978477,1704838308676,-500.0,0.00041424,30]
[310978478,1704838308687,-1200.54,0.00041424,30]
[310978479,1704838308697,-500.0,0.00041424,30]
[310978480,1704838308708,-500.0,0.00041424,30]
[310978481,1704838308718,-500.0,0.00041424,30]
[310978482,1704838308728,-500.0,0.00041424,30]
[310978483,1704838308737,-500.0,0.00041424,30]
[310978484,1704838308747,-805.96,0.00041424,30]
[310978485,1704838308756,-500.0,0.00041424,30]
[310978486,1704838308765,-500.0,0.00041424,30]
[310978487,1704838308774,-508.81102327,0.00041424,30]
[310978488,1704838308784,-500.0,0.00041424,30]
[310978489,1704838308793,-534.28,0.00041424,30]
[310978490,1704838308803,-500.0,0.00041424,30]
[310978491,1704838308814,-771.52,0.00041424,30]
[310978492,1704838308823,-500.0,0.00041424,30]
[310978493,1704838308838,-500.0,0.00041424,30]
[310978494,1704838308847,-500.0,0.00041424,30]
[310978495,1704838308857,-500.0,0.00041424,30]
[310978496,1704838308866,-711.66,0.00041424,30]
[310978497,1704838308876,-500.0,0.00041424,30]
[310978498,1704838308885,-500.0,0.00041424,30]
[310978499,1704838308895,-162.64,0.00041424,30]
[310978500,1704838308906,-717.43,0.00041424,30]
[310978501,1704838308915,-975.47,0.00041424,30]
[310978502,1704838308925,-500.0,0.00041424,30]
[310978503,1704838308935,-500.0,0.00041424,30]
[310978504,1704838308945,-500.0,0.00041424,30]
[310978505,1704838308954,-500.0,0.00041424,30]
[310978506,1704838308964,-1000.0,0.00041424,30]
[310978507,1704838308984,-500.0,0.00041424,30]
[310978508,1704838308995,-500.0,0.00041424,30]
[310978509,1704838309005,-811.72,0.00041424,30]
[310978510,1704838309016,-500.0,0.00041424,30]
[310978511,1704838309026,-1470.07,0.00041424,30]
[310978512,1704838309036,-1184.23,0.00041424,30]
[310978513,1704838309046,-500.0,0.00041424,30]
[310978514,1704838309056,-500.0,0.00041424,30]
[310978515,1704838309066,-500.0,0.00041424,7]
[310978516,1704838309076,-546.94,0.00041424,30]
[310978517,1704838309089,-500.0,0.00041424,30]
[310978518,1704838309099,-500.0,0.00041424,30]
[310978519,1704838309109,-500.0,0.00041424,30]
[310978520,1704838309119,-514.97,0.00041424,30]
[310978521,1704838309128,-554.43,0.00041424,30]
[310978522,1704838309138,-500.0,0.00041424,30]
[310978523,1704838309148,-693.86,0.00041424,30]
[310978524,1704838309158,-926.72,0.00041424,30]
[310978525,1704838309167,-948.49,0.00041424,30]
[310978526,1704838309177,-500.0,0.00041424,30]
[310978527,1704838309186,-948.28,0.00041424,30]
[310978528,1704838309197,-563.2,0.00041424,30]
[310978529,1704838309207,-1417.25,0.00041424,30]
[310978530,1704838309217,-882.71,0.00041424,30]
[310978531,1704838309227,-500.0,0.00041424,30]
[310978532,1704838309237,-500.0,0.00041424,30]
[310978533,1704838309246,-686.66,0.00041424,30]
[310978534,1704838309257,-500.0,0.00041424,30]
[310978535,1704838309266,-500.0,0.00041424,30]
[310978536,1704838309276,-500.0,0.00041424,30]
[310978537,1704838309286,-766.36,0.00041424,30]
[310978538,1704838309295,-1150.95,0.00041424,30]
[310978539,1704838309306,-500.0,0.00041424,30]
[310978540,1704838309316,-1076.63,0.00041424,30]
[310978541,1704838309325,-522.65,0.00041424,30]
[310978542,1704838309338,-1195.65,0.00041424,30]
[310978543,1704838309348,-1655.71,0.00041424,30]
[310978544,1704838309358,-500.0,0.00041424,30]
[310978545,1704838309367,-500.0,0.00041424,30]
[310978546,1704838309377,-500.0,0.00041424,30]
[310978547,1704838309387,-561.13,0.00041424,30]
[310978548,1704838309396,-500.0,0.00041424,30]
[310978549,1704838309406,-500.0,0.00041424,30]
[310978550,1704838309416,-500.0,0.00041424,30]
[310978551,1704838309425,-500.0,0.00041424,30]
[310978552,1704838309435,-1772.94,0.00041424,30]
[310978553,1704838309445,-500.0,0.00041424,30]
[310978554,1704838309454,-500.0,0.00041424,30]
[310978555,1704838309464,-500.0,0.00041424,30]
[310978556,1704838309474,-962.61,0.00041424,30]
[310978557,1704838309484,-1512.77,0.00041424,30]
[310978558,1704838309493,-500.0,0.00041424,30]
[310978559,1704838309504,-574.09,0.00041424,30]
[310978560,1704838309513,-500.0,0.00041424,30]
[310978561,1704838309523,-500.0,0.00041424,30]
[310978562,1704838309532,-620.4,0.00041424,30]
[310978563,1704838309542,-726.32,0.00041424,30]
[310978564,1704838309551,-500.0,0.00041424,30]
[310978565,1704838309561,-500.0,0.00041424,30]
[310978566,1704838309571,-4344.57,0.00041424,30]
[310978567,1704838309582,-1267.88,0.00041424,30]
[310978568,1704838309592,-500.0,0.00041424,30]
[310978569,1704838309602,-500.0,0.00041424,30]
[310978570,1704838309612,-500.0,0.00041424,30]
[310978571,1704838309622,-500.0,0.00041424,30]
[310978572,1704838309632,-500.0,0.00041424,30]
[310978573,1704838309641,-994.56,0.00041424,30]
[310978574,1704838309651,-808.78,0.00041424,30]
[310978575,1704838309661,-1000.0,0.00041424,30]
[310978576,1704838309670,-500.0,0.00041424,30]
[310978577,1704838309680,-500.0,0.00041424,30]
[310978578,1704838309689,-1548.01,0.00041424,30]
[310978579,1704838309699,-1847.0,0.00041424,30]
[310978580,1704838309709,-818.42,0.00041424,30]
[310978581,1704838309719,-500.0,0.00041424,30]
[310978582,1704838309730,-1398.94,0.00041424,30]
[310978583,1704838309740,-500.0,0.00041424,30]
[310978584,1704838309750,-608.39,0.00041424,30]
[310978585,1704838309759,-612.28,0.00041424,30]
[310978586,1704838309769,-500.0,0.00041424,30]
[310978587,1704838309779,-500.0,0.00041424,30]
[310978588,1704838309788,-500.0,0.00041424,30]
[310978589,1704838309798,-500.0,0.00041424,30]
[310978590,1704838309807,-224.84,0.00041424,30]
[310978591,1704838309818,-500.0,0.00041424,30]
[310978592,1704838309832,-900.47,0.00041424,10]
[310978593,1704838309842,-549.8,0.00041424,30]
[310978594,1704838309852,-723.87,0.00041424,30]
[310978595,1704838309861,-2028.27,0.00041424,30]
[310978596,1704838309871,-2514.08,0.00041424,30]
[310978597,1704838309881,-500.0,0.00041424,30]
[310978598,1704838309890,-1147.93,0.00041424,30]
[310978599,1704838309900,-500.0,0.00041424,30]
[310978600,1704838309909,-500.0,0.00041424,30]
[310978601,1704838309920,-899.03,0.00041424,30]
[310978602,1704838309929,-2024.87,0.00041424,30]
[310978603,1704838309939,-500.0,0.00041424,30]
[310978604,1704838309949,-500.0,0.00041424,30]
[310978605,1704838309958,-607.6,0.00041424,30]
[310978606,1704838310100,-1740.87,0.00041424,30]
[310978607,1704838310111,-500.0,0.00041424,30]
[310978608,1704838310122,-500.0,0.00041424,30]
[310978609,1704838310132,-1137.4,0.00041424,30]
[310978610,1704838310143,-1102.73,0.00041424,30]
[310978611,1704838310153,-2568.33,0.00041424,30]
[310978612,1704838310163,-500.0,0.00041424,30]
[310978613,1704838310175,-8096.32,0.00041424,30]
[310978614,1704838310185,-500.0,0.00041424,30]
[310978615,1704838310196,-547.63841939,0.00041424,30]
[310978616,1704838310205,-1731.94,0.00041424,30]
[310978617,1704838310215,-500.0,0.00041424,30]
[310978618,1704838310225,-889.91,0.00041424,30]
[310978619,1704838310237,-500.0,0.00041424,30]
[310978620,1704838310247,-500.0,0.00041424,30]
[310978621,1704838310256,-869.4,0.00041424,30]
[310978622,1704838310266,-588.64,0.00041424,30]
[310978623,1704838310275,-500.0,0.00041424,30]
[310978624,1704838310284,-573.17,0.00041424,30]
[310978625,1704838310294,-2390.88,0.00041424,30]
[310978626,1704838310303,-530.46,0.00041424,30]
[310978627,1704838310312,-1686.48,0.00041424,30]
[310978628,1704838310322,-1139.86,0.00041424,30]
[310978629,1704838310333,-1680.83,0.00041424,30]
[310978630,1704838310342,-1855.67,0.00041424,30]
[310978631,1704838310352,-964.43,0.00041424,30]
[310978632,1704838310361,-1222.91,0.00041424,30]
[310978633,1704838310370,-500.0,0.00041424,30]
[310978634,1704838310380,-500.0,0.00041424,30]
[310978635,1704838310389,-1068.17,0.00041424,30]
[310978636,1704838310399,-4050.58,0.00041424,30]
[310978637,1704838310408,-500.0,0.00041424,30]
[310978638,1704838310417,-500.0,0.00041424,30]
[310978639,1704838310427,-500.0,0.00041424,30]
[310978640,1704838310436,-500.0,0.00041424,30]
[310978641,1704838310445,-500.0,0.00041424,30]
[310978642,1704838310455,-1169.54,0.00041424,30]
[310978643,1704838310464,-500.0,0.00041424,30]
[310978644,1704838310473,-1173.13,0.00041424,30]
[310978645,1704838310484,-3009.19,0.00041424,30]
[310978646,1704838310493,-500.0,0.00041424,30]
[310978647,1704838310503,-1486.96,0.00041424,30]
[310978648,1704838310513,-500.0,0.00041424,30]
[310978649,1704838310523,-1602.35,0.00041424,30]
[310978650,1704838310532,-1254.88,0.00041424,30]
[310978651,1704838310542,-516.09,0.00041424,30]
[310978652,1704838310551,-524.88,0.00041424,30]
[310978653,1704838310561,-500.0,0.00041424,30]
[310978654,1704838310571,-500.0,0.00041424,30]
[310978655,1704838310584,-500.0,0.00041424,30]
[310978656,1704838310593,-650.86,0.00041424,30]
[310978657,1704838310603,-2722.07,0.00041424,30]
[310978658,1704838310612,-500.0,0.00041424,30]
[310978659,1704838310621,-500.0,0.00041424,30]
[310978660,1704838310630,-1778.76,0.00041424,30]
[310978661,1704838310640,-1497.92,0.00041424,30]
[310978662,1704838310649,-500.0,0.00041424,30]
[310978663,1704838310658,-4756.62,0.00041424,30]